fUSD/lending_fUSD_20250313
["ID","MTS","AMOUNT","RATE_DAILY","PERIOD"]
[356067162,1741877524520,-616.64,0.00028451,18]
[356067163,1741877524530,-500.0,0.00028451,18]
[356067164,1741877524539,-500.0,0.00028451,18]
[356067165,1741877524549,-683.37,0.00028451,18]
[356067166,1741877524559,-683.37,0.00028451,18]
[356067167,1741877524568,-270.36351047,0.00028451,18]
[356067168,1741877524579,-500.0,0.00028451,18]
[356067169,1741877524588,-500.0,0.00028451,18]
[356067170,1741877524598,-500.0,0.00028451,18]
[356067171,1741877524607,-500.0,0.00028451,18]
[356067172,1741877524617,-500.0,0.00028451,18]
[356067173,1741877524627,-500.0,0.00028451,18]
[356067174,1741877524636,-500.0,0.00028451,18]
[356067175,1741877524646,-500.0,0.00028451,18]
[356067176,1741877524656,-488.99750675,0.00028451,18]
[356067177,1741877524665,-500.0,0.00028451,18]
[356067178,1741877524676,-500.0,0.00028451,18]
[356067179,1741877524685,-500.0,0.00028451,18]
[356067180,1741877524694,-1197.54,0.00028451,18]
[356067181,1741877524704,-1197.54,0.00028451,18]
[356067182,1741877524713,-500.0,0.00028451,18]
[356067183,1741877524723,-500.0,0.00028451,18]
[356067184,1741877524732,-500.0,0.00028451,18]
[356067185,1741877524741,-603.19,0.00028451,18]
[356067186,1741877524751,-603.19,0.00028451,18]
[356067187,1741877524760,-500.0,0.00028451,18]
[356067188,1741877524770,-500.0,0.00028451,18]
[356067189,1741877524780,-500.0,0.00028451,18]
[356067190,1741877524790,-500.0,0.00028451,18]
[356067191,1741877524800,-500.0,0.00028451,18]
[356067192,1741877524810,-500.0,0.00028451,18]
[356067193,1741877524821,-359.95526479,0.00028451,18]
[356067194,1741877524832,-500.0,0.00028451,18]
[356067195,1741877524843,-500.0,0.00028451,18]
[356067196,1741877524857,-500.0,0.00028451,18]
[356067197,1741877524867,-402.64535565,0.00028451,18]
[356067198,1741877524877,-500.0,0.00028451,18]
[356067199,1741877524888,-889.61,0.00028451,18]
[356067200,1741877524898,-500.0,0.00028451,18]
[356067201,1741877524907,-889.61,0.00028451,18]
[356067202,1741877524917,-520.42,0.00028451,18]
[356067203,1741877524929,-520.42,0.00028451,18]
[356067204,1741877524939,-537.09,0.00028451,18]
[356067205,1741877524949,-537.09,0.00028451,18]
[356067206,1741877524959,-500.0,0.00028451,18]
[356067207,1741877524969,-500.0,0.00028451,18]
[356067208,1741877524979,-500.0,0.00028451,18]
[356067209,1741877524989,-500.0,0.00028451,18]
[356067210,1741877524999,-1443.64,0.00028451,18]
[356067211,1741877525009,-433.88730162,0.00028451,18]
[356067212,1741877525020,-1443.64,0.00028451,18]
[356067213,1741877525030,-500.0,0.00028451,18]
[356067214,1741877525040,-325.18448851,0.00028451,18]
[356067215,1741877525050,-877.63,0.00028451,18]
[356067216,1741877525060,-877.63,0.00028451,18]
[356067217,1741877525070,-500.0,0.00028451,18]
[356067218,1741877525082,-500.0,0.00028451,18]
[356067219,1741877525092,-500.0,0.00028451,18]
[356067220,1741877525102,-500.0,0.00028451,18]
[356067221,1741877525112,-547.45,0.00028451,18]
[356067222,1741877525122,-547.45,0.00028451,18]
[356067223,1741877525131,-543.74,0.00028451,18]
[356067224,1741877525141,-543.74,0.00028451,18]
[356067225,1741877525152,-877.5,0.00028451,18]
[356067226,1741877525161,-877.5,0.00028451,18]
[356067227,1741877525171,-877.5,0.00028451,18]
[356067228,1741877525181,-877.5,0.00028451,18]
[356067229,1741877525191,-877.56420842,0.00028451,18]
[356067230,1741877525201,-612.61,0.00028451,18]
[356067231,1741877525211,-612.61,0.00028451,18]
[356067232,1741877525221,-841.51,0.00028451,18]
[356067233,1741877525231,-841.51,0.00028451,18]
[356067234,1741877525241,-2624.51,0.00028451,18]
[356067235,1741877525251,-2624.51,0.00028451,18]
[356067236,1741877525261,-654.97,0.00028451,18]
[356067237,1741877525272,-500.0,0.00028451,18]
[356067238,1741877525282,-2624.51,0.00028451,18]
[356067239,1741877525291,-654.97,0.00028451,18]
[356067240,1741877525303,-500.0,0.00028451,18]
[356067241,1741877525313,-2624.51,0.00028451,18]
[356067242,1741877525322,-2624.63066773,0.00028451,18]
[356067243,1741877525333,-725.3,0.00028451,18]
[356067244,1741877525342,-725.3,0.00028451,18]
[356067245,1741877525352,-500.0,0.00028451,18]
[356067246,1741877525362,-500.0,0.00028451,18]
[356067247,1741877525372,-508.73,0.00028451,18]
[356067248,1741877525382,-508.73,0.00028451,18]
[356067249,1741877525391,-546.0,0.00028451,18]
[356067250,1741877525401,-546.0,0.00028451,18]
[356067251,1741877525411,-546.0,0.00028451,18]
[356067252,1741877525421,-911.58,0.00028451,18]
[356067253,1741877525431,-546.0,0.00028451,18]
[356067254,1741877525440,-911.58,0.00028451,18]
[356067255,1741877525450,-546.02306361,0.00028451,18]
[356067256,1741877525459,-989.11,0.00028451,18]
[356067257,1741877525469,-989.11,0.00028451,18]
[356067258,1741877525479,-568.24,0.00028451,18]
[356067259,1741877525489,-568.24,0.00028451,18]
[356067260,1741877525499,-653.78,0.00028451,18]
[356067261,1741877525509,-653.78,0.00028451,18]
[356067262,1741877525519,-653.78,0.00028451,18]
[356067263,1741877525528,-5014.88,0.00028451,18]
[356067264,1741877525537,-653.78,0.00028451,18]
[356067265,1741877525547,-5014.88,0.00028451,18]
[356067266,1741877525556,-653.96136052,0.00028451,18]
[356067267,1741877525566,-500.0,0.00028451,18]
[356067268,1741877525575,-598.1764846,0.00028451,18]
[356067269,1741877525589,-512.35,0.00028451,18]
[356067270,1741877525598,-512.35,0.00028451,18]
[356067271,1741877525608,-512.35,0.00028451,18]
[356067272,1741877525618,-512.35,0.00028451,18]
[356067273,1741877525628,-512.5764916,0.00028451,18]
[356067274,1741877525638,-1301.45,0.00028451,18]
[356067275,1741877525648,-1301.45,0.00028451,18]
[356067276,1741877525658,-557.36,0.00028451,18]
[356067277,1741877525668,-557.36,0.00028451,18]
[356067278,1741877525678,-500.0,0.00028451,18]
[356067279,1741877525688,-500.0,0.00028451,18]
[356067280,1741877525698,-630.4,0.00028451,18]
[356067281,1741877525708,-630.4,0.00028451,18]
[356067282,1741877525717,-630.4,0.00028451,18]
[356067283,1741877525727,-630.4,0.00028451,18]
[356067284,1741877525736,-630.40629348,0.00028451,18]
[356067285,1741877525746,-804.68,0.00028451,18]
[356067286,1741877525755,-804.68,0.00028451,18]
[356067287,1741877525765,-765.33,0.00028451,18]
[356067288,1741877525775,-765.33,0.00028451,18]
[356067289,1741877525784,-631.05,0.00028451,18]
[356067290,1741877525793,-631.05,0.00028451,18]
[356067291,1741877525803,-631.05,0.00028451,18]
[356067292,1741877525812,-589.78,0.00028451,18]
[356067293,1741877525821,-631.05,0.00028451,18]
[356067294,1741877525833,-589.78,0.00028451,18]
[356067295,1741877525844,-631.1561826,0.00028451,18]
[356067296,1741877525857,-877.44,0.00028451,18]
[356067297,1741877525867,-877.44,0.00028451,18]
[356067298,1741877525876,-1049.42,0.00028451,18]
[356067299,1741877525886,-1049.42,0.00028451,18]
[356067300,1741877525897,-1049.42,0.00028451,18]
[356067301,1741877525907,-1049.42,0.00028451,18]
[356067302,1741877525917,-1049.50224844,0.00028451,18]
[356067303,1741877525928,-500.0,0.00028451,18]
[356067304,1741877525938,-500.0,0.00028451,18]
[356067305,1741877525948,-630.74,0.00028451,18]
[356067306,1741877525958,-630.74,0.00028451,18]
[356067307,1741877525967,-630.74,0.00028451,18]
[356067308,1741877525978,-630.74,0.00028451,18]
[356067309,1741877525988,-630.82216858,0.00028451,18]
[356067310,1741877525997,-500.0,0.00028451,18]
[356067311,1741877526007,-500.0,0.00028451,18]
[356067312,1741877526017,-500.0,0.00028451,18]
[356067313,1741877526027,-500.0,0.00028451,18]
[356067314,1741877526037,-1528.16,0.00028451,18]
[356067315,1741877526047,-691.90227483,0.00028451,18]
[356067316,1741877526266,-836.25772517,0.00028451,18]
[356067317,1741877526276,-500.0,0.00028451,18]
[356067318,1741877526286,-587.69335159,0.00028451,18]
[356067319,1741877526296,-845.43,0.00028451,18]
[356067320,1741877526306,-845.43,0.00028451,18]
[356067321,1741877526316,-545.3,0.00028451,18]
[356067322,1741877526326,-545.3,0.00028451,18]
[356067323,1741877526336,-1509.59,0.00028451,18]
[356067324,1741877526346,-1509.59,0.00028451,18]
[356067325,1741877526355,-6022.95,0.00028451,2]
[356067326,1741877526366,-689.49700961,0.00028451,2]
[356067327,1741877526379,-5333.45299039,0.00028451,2]
[356067328,1741877526388,-6022.95,0.00028451,2]
[356067329,1741877526398,-6022.95,0.00028451,2]
[356067330,1741877526408,-596.7193637,0.00028451,2]
[356067331,1741877526420,-3115.65172122,0.00028451,2]
[356067332,1741877526432,-841.0,0.00028451,2]
[356067333,1741877526444,-1469.77067318,0.00028451,2]
[356067334,1741877526453,-974.88543172,0.00028451,18]
[356067335,1741877526479,-177.12456828,0.00028451,18]
[356067336,1741877526490,-134.18441672,0.00028451,18]
[356067337,1741877526502,-1017.82558328,0.00028451,18]
[356067338,1741877526512,-1254.42,0.00028451,18]
[356067339,1741877526522,-333.44375843,0.00028451,18]
[356067340,1741877526534,-858.39624157,0.00028451,18]
[356067341,1741877526544,-1254.42,0.00028451,18]
[356067342,1741877526555,-676.87356041,0.00028451,18]
[356067343,1741877527127,-849.37714084,0.0002845,18]
[356067344,1741877527140,-1215.7,0.0002845,18]
[356067345,1741877527152,-2603.61285916,0.0002845,18]
[356067346,1741877527163,-4668.69,0.0002845,18]
[356067347,1741877527173,-514.96643959,0.00028451,18]
[356067348,1741877527183,-861.55,0.00028451,18]
[356067349,1741877527193,-1191.84,0.00028451,18]
[356067350,1741877527204,-1191.84,0.00028451,18]
[356067351,1741877527215,-861.55,0.00028451,18]
[356067352,1741877527225,-1191.91846577,0.00028451,18]
[356067353,1741877527236,-500.0,0.00028451,18]
[356067354,1741877527245,-500.0,0.00028451,18]
[356067355,1741877527255,-778.61,0.00028451,18]
[356067356,1741877527266,-778.61,0.00028451,18]
[356067357,1741877527275,-778.61,0.00028451,18]
[356067358,1741877527285,-778.61,0.00028451,18]
[356067359,1741877527295,-828.9,0.00028451,18]
[356067360,1741877527305,-778.6181345,0.00028451,18]
[356067361,1741877527315,-828.9,0.00028451,18]
[356067362,1741877527326,-732.88,0.00028451,18]
[356067363,1741877527337,-732.88,0.00028451,18]
[356067364,1741877527346,-732.88,0.00028451,18]
[356067365,1741877527356,-732.88,0.00028451,18]
[356067366,1741877527364,-733.08749052,0.00028451,18]
[356067367,1741877527373,-500.0,0.00028451,18]
[356067368,1741877527382,-500.0,0.00028451,18]
[356067369,1741877527392,-515.71,0.00028451,18]
[356067370,1741877527401,-515.71,0.00028451,18]
[356067371,1741877527410,-2250.74,0.00028451,18]
[356067372,1741877527420,-2250.74,0.00028451,18]
[356067373,1741877527438,-615.24,0.00028451,18]
[356067374,1741877527450,-615.24,0.00028451,18]
[356067375,1741877527460,-611.51,0.00028451,18]
[356067376,1741877527470,-611.51,0.00028451,18]
[356067377,1741877527480,-943.15,0.00028451,18]
[356067378,1741877527490,-943.15,0.00028451,18]
[356067379,1741877527499,-2877.83,0.00028451,18]
[356067380,1741877527509,-2877.83,0.00028451,18]
[356067381,1741877527519,-500.0,0.00028451,18]
[356067382,1741877527530,-500.0,0.00028451,18]
[356067383,1741877527540,-968.62,0.00028451,18]
[356067384,1741877527551,-517.25,0.00028451,18]
[356067385,1741877527561,-968.62,0.00028451,18]
[356067386,1741877527571,-517.25,0.00028451,18]
[356067387,1741877527580,-517.25,0.00028451,18]
[356067388,1741877527590,-517.25,0.00028451,18]
[356067389,1741877527601,-517.27287892,0.00028451,18]
[356067390,1741877527611,-1936.13,0.00028451,18]
[356067391,1741877527622,-1936.13,0.00028451,18]
[356067392,1741877527632,-592.53,0.00028451,18]
[356067393,1741877527643,-592.53,0.00028451,18]
[356067394,1741877527653,-548.58,0.00028451,18]
[356067395,1741877527663,-548.58,0.00028451,18]
[356067396,1741877527674,-1850.13,0.00028451,18]
[356067397,1741877527685,-1850.13,0.00028451,18]
[356067398,1741877527695,-230.56371544,0.00028451,18]
[356067399,1741877527705,-2562.48,0.00028451,18]
[356067400,1741877527716,-2562.48,0.00028451,18]
[356067401,1741877527727,-503.83,0.00028451,18]
[356067402,1741877527737,-2562.48,0.00028451,18]
[356067403,1741877527748,-503.83,0.00028451,18]
[356067404,1741877527758,-2562.48,0.00028451,18]
[356067405,1741877527769,-2562.68246879,0.00028451,18]
[356067406,1741877527779,-1591.35,0.00028451,18]
[356067407,1741877527790,-1591.35,0.00028451,18]
[356067408,1741877527801,-1591.35,0.00028451,18]
[356067409,1741877527811,-1591.35,0.00028451,18]
[356067410,1741877527821,-500.0,0.00028451,18]
[356067411,1741877527834,-1591.55408868,0.00028451,18]
[356067412,1741877527845,-365.23772607,0.00028451,18]
[356067413,1741877527861,-2233.91,0.00028451,18]
[356067414,1741877527871,-2233.91,0.00028451,18]
[356067415,1741877527881,-1531.67,0.00028451,18]
[356067416,1741877527893,-1531.67,0.00028451,18]
[356067417,1741877527903,-1531.67,0.00028451,18]
[356067418,1741877527913,-531.75,0.00028451,18]
[356067419,1741877527924,-1531.67,0.00028451,18]
[356067420,1741877527936,-531.75,0.00028451,18]
[356067421,1741877527946,-1279.76,0.00028451,18]
[356067422,1741877527956,-1531.8221616,0.00028451,18]
[356067423,1741877527967,-1279.76,0.00028451,18]
[356067424,1741877527978,-482.7339066,0.00028451,18]
[356067425,1741877527988,-917.98,0.00028451,18]
[356067426,1741877527999,-917.98,0.00028451,18]
[356067427,1741877528009,-500.0,0.00028451,18]
[356067428,1741877528019,-500.0,0.00028451,18]
[356067429,1741877528030,-1140.98,0.00028451,18]
[356067430,1741877528041,-1140.98,0.00028451,18]
[356067431,1741877528051,-774.11,0.00028451,18]
[356067432,1741877528062,-774.11,0.00028451,18]
[356067433,1741877528072,-745.19,0.00028451,18]
[356067434,1741877528086,-584.93,0.00028451,18]
[356067435,1741877528096,-774.11,0.00028451,18]
[356067436,1741877528106,-745.19,0.00028451,18]
[356067437,1741877528116,-584.93,0.00028451,18]
[356067438,1741877528128,-774.11,0.00028451,18]
[356067439,1741877528139,-584.93,0.00028451,18]
[356067440,1741877528150,-774.11145833,0.00028451,18]
[356067441,1741877528161,-584.93,0.00028451,18]
[356067442,1741877528171,-585.04865724,0.00028451,18]
[356067443,1741877528181,-3142.78,0.00028451,18]
[356067444,1741877528192,-3142.78,0.00028451,18]
[356067445,1741877528202,-650.5,0.00028451,18]
[356067446,1741877528213,-650.5,0.00028451,18]
[356067447,1741877528223,-500.0,0.00028451,18]
[356067448,1741877528233,-500.0,0.00028451,18]
[356067449,1741877528243,-500.0,0.00028451,18]
[356067450,1741877528254,-500.0,0.00028451,18]
[356067451,1741877528264,-1284.79,0.00028451,18]
[356067452,1741877528275,-1284.79,0.00028451,18]
[356067453,1741877528286,-919.06,0.00028451,18]
[356067454,1741877528297,-919.06,0.00028451,18]
[356067455,1741877528308,-1328.89,0.00028451,18]
[356067456,1741877528318,-654.08,0.00028451,18]
[356067457,1741877528329,-654.08,0.00028451,18]
[356067458,1741877528341,-1328.89,0.00028451,18]
[356067459,1741877528352,-1328.89,0.00028451,18]
[356067460,1741877528362,-1328.89,0.00028451,18]
[356067461,1741877528372,-1329.02859418,0.00028451,18]
[356067462,1741877528383,-673.07,0.00028451,18]
[356067463,1741877528394,-673.07,0.00028451,18]
[356067464,1741877528404,-500.0,0.00028451,18]
[356067465,1741877528415,-500.0,0.00028451,18]
[356067466,1741877528426,-750.81,0.00028451,18]
[356067467,1741877528439,-750.81,0.00028451,18]
[356067468,1741877528684,-500.0,0.00028451,18]
[356067469,1741877528693,-500.0,0.00028451,18]
[356067470,1741877528703,-500.0,0.00028451,18]
[356067471,1741877528712,-500.0,0.00028451,18]
[356067472,1741877528722,-512.7326701,0.00028451,18]
[356067473,1741877528731,-1294.14,0.00028451,18]
[356067474,1741877528740,-1294.14,0.00028451,18]
[356067475,1741877528750,-354.83,0.00028451,7]
[356067476,1741877528759,-354.83,0.00028451,7]
[356067477,1741877528768,-354.83,0.00028451,7]
[356067478,1741877528778,-354.83,0.00028451,7]
[356067479,1741877528787,-1372.56,0.00028451,18]
[356067480,1741877528797,-354.83043546,0.00028451,7]
[356067481,1741877528806,-1372.56,0.00028451,18]
[356067482,1741877528816,-1372.56,0.00028451,18]
[356067483,1741877528826,-1372.56,0.00028451,18]
[356067484,1741877528837,-1372.6291807,0.00028451,18]
[356067485,1741877528850,-1026.51,0.00028451,18]
[356067486,1741877528859,-1026.51,0.00028451,18]
[356067487,1741877528869,-663.96,0.00028451,18]
[356067488,1741877528879,-663.96,0.00028451,18]
[356067489,1741877528889,-1799.08,0.00028451,18]
[356067490,1741877528899,-1799.08,0.00028451,18]
[356067491,1741877528909,-1799.08,0.00028451,18]
[356067492,1741877528918,-607.97,0.00028451,10]
[356067493,1741877528929,-1799.08,0.00028451,18]
[356067494,1741877528938,-607.97,0.00028451,10]
[356067495,1741877528948,-1149.34,0.00028451,18]
[356067496,1741877528957,-1799.12599857,0.00028451,18]
[356067497,1741877528967,-1149.34,0.00028451,18]
[356067498,1741877528977,-500.0,0.00028451,18]
[356067499,1741877528987,-500.0,0.00028451,18]
[356067500,1741877528997,-500.0,0.00028451,18]
[356067501,1741877529007,-500.0,0.00028451,18]
[356067502,1741877529016,-3134.61,0.00028451,18]
[356067503,1741877529027,-3134.61,0.00028451,18]
[356067504,1741877529036,-3134.61,0.00028451,18]
[356067505,1741877529046,-3134.61,0.00028451,18]
[356067506,1741877529056,-3134.66391548,0.00028451,18]
[356067507,1741877529066,-500.0,0.00028451,18]
[356067508,1741877529075,-173.07970414,0.00028451,18]
[356067509,1741877529086,-670.08,0.00028451,18]
[356067510,1741877529096,-670.08,0.00028451,18]
[356067511,1741877529106,-500.0,0.00028451,18]
[356067512,1741877529116,-500.0,0.00028451,18]
[356067513,1741877529126,-500.0,0.00028451,18]
[356067514,1741877529135,-500.0,0.00028451,18]
[356067515,1741877529145,-301.66053829,0.00028451,18]
[356067516,1741877529154,-500.0,0.00028451,18]
[356067517,1741877529164,-500.0,0.00028451,18]
[356067518,1741877529173,-500.0,0.00028451,18]
[356067519,1741877529183,-500.0,0.00028451,18]
[356067520,1741877529193,-500.0,0.00028451,18]
[356067521,1741877529203,-500.0,0.00028451,18]
[356067522,1741877529212,-862.67,0.00028451,18]
[356067523,1741877529222,-500.0,0.00028451,18]
[356067524,1741877529232,-500.0,0.00028451,18]
[356067525,1741877529242,-862.67,0.00028451,18]
[356067526,1741877529251,-500.0,0.00028451,18]
[356067527,1741877529261,-1839.29,0.00028451,18]
[356067528,1741877529271,-1839.29,0.00028451,18]
[356067529,1741877529281,-795.32,0.00028451,18]
[356067530,1741877529291,-500.0,0.00028451,18]
[356067531,1741877529301,-795.32,0.00028451,18]
[356067532,1741877529311,-500.0,0.00028451,18]
[356067533,1741877529321,-795.32,0.00028451,18]
[356067534,1741877529333,-795.32,0.00028451,18]
[356067535,1741877529342,-795.46517186,0.00028451,18]
[356067536,1741877529352,-3917.63,0.00028451,18]
[356067537,1741877529363,-3917.63,0.00028451,18]
[356067538,1741877529372,-1131.1,0.00028451,18]
[356067539,1741877529382,-1131.1,0.00028451,18]
[356067540,1741877529391,-500.0,0.00028451,18]
[356067541,1741877529401,-500.0,0.00028451,18]
[356067542,1741877529411,-272.79788419,0.00028451,18]
[356067543,1741877529420,-514.25,0.00028451,18]
[356067544,1741877529430,-514.25,0.00028451,18]
[356067545,1741877529440,-500.0,0.00028451,18]
[356067546,1741877529449,-500.0,0.00028451,18]
[356067547,1741877529458,-805.12,0.00028451,18]
[356067548,1741877529467,-805.12,0.00028451,18]
[356067549,1741877529477,-805.12,0.00028451,18]
[356067550,1741877529486,-805.12,0.00028451,18]
[356067551,1741877529495,-596.71569696,0.00028451,18]
[356067552,1741877529505,-805.24,0.00028451,18]
[356067553,1741877529514,-1000.0,0.00028451,18]
[356067554,1741877529525,-1000.0,0.00028451,18]
[356067555,1741877529534,-3749.8,0.00028451,18]
[356067556,1741877529543,-2736.88,0.00028451,18]
[356067557,1741877529552,-2736.88,0.00028451,18]
[356067558,1741877529562,-3749.8,0.00028451,18]
[356067559,1741877529572,-3749.8,0.00028451,18]
[356067560,1741877529582,-3749.8,0.00028451,18]
[356067561,1741877529591,-556.23,0.00028451,18]
[356067562,1741877529601,-3750.0391964,0.00028451,18]
[356067563,1741877529610,-556.23,0.00028451,18]
[356067564,1741877529620,-500.0,0.00028451,18]
[356067565,1741877529630,-500.0,0.00028451,18]
[356067566,1741877529639,-944.89,0.00028451,18]
[356067567,1741877529649,-944.89,0.00028451,18]
[356067568,1741877529659,-500.0,0.00028451,18]
[356067569,1741877529668,-500.0,0.00028451,18]
[356067570,1741877529677,-500.0,0.00028451,18]
[356067571,1741877529687,-500.0,0.00028451,18]
[356067572,1741877529697,-500.0,0.00028451,18]
[356067573,1741877529706,-500.0,0.00028451,18]
[356067574,1741877529715,-503.93,0.00028451,18]
[356067575,1741877529725,-503.93,0.00028451,18]
[356067576,1741877529735,-447.55212939,0.00028451,18]
[356067577,1741877529744,-617.77963903,0.00028451,18]
[356067578,1741877529753,-500.0,0.00028451,18]
[356067579,1741877529762,-500.0,0.00028451,18]
[356067580,1741877529771,-1721.54,0.00028451,18]
[356067581,1741877529781,-1721.54,0.00028451,18]
[356067582,1741877529790,-691.19,0.00028451,18]
[356067583,1741877529800,-691.19,0.00028451,18]
[356067584,1741877529809,-691.19,0.00028451,18]
[356067585,1741877529818,-691.19,0.00028451,18]
[356067586,1741877529828,-691.35188706,0.00028451,18]
[356067587,1741877529839,-500.0,0.00028451,18]
[356067588,1741877529849,-500.0,0.00028451,18]
[356067589,1741877529862,-565.02,0.00028451,18]
[356067590,1741877529871,-565.02,0.00028451,18]
[356067591,1741877529882,-647.39302314,0.00028451,18]
[356067592,1741877529892,-565.02,0.00028451,18]
[356067593,1741877529901,-565.02,0.00028451,18]
[356067594,1741877529911,-565.10425567,0.00028451,18]
[356067595,1741877529921,-617.67,0.00028451,18]
[356067596,1741877529932,-617.67,0.00028451,18]
[356067597,1741877529942,-617.67,0.00028451,18]
[356067598,1741877529951,-617.67,0.00028451,18]
[356067599,1741877529960,-617.7131578,0.00028451,18]
[356067600,1741877529970,-2839.76,0.00028451,18]
[356067601,1741877529980,-2263.25,0.00028451,18]
[356067602,1741877529990,-2263.25,0.00028451,18]
[356067603,1741877530000,-2839.76,0.00028451,18]
[356067604,1741877530009,-583.61,0.00028451,18]
[356067605,1741877530020,-583.61,0.00028451,18]
[356067606,1741877530029,-1507.84,0.00028451,18]
[356067607,1741877530039,-1507.84,0.00028451,18]
[356067608,1741877530048,-749.62,0.00028451,18]
[356067609,1741877530058,-749.62,0.00028451,18]
[356067610,1741877530068,-580.97,0.00028451,18]
[356067611,1741877530078,-580.97,0.00028451,18]
[356067612,1741877530089,-592.00648167,0.00028451,18]
[356067613,1741877530099,-580.97,0.00028451,18]
[356067614,1741877530110,-580.97,0.00028451,18]
[356067615,1741877530119,-581.06978516,0.00028451,18]
[356067616,1741877530128,-500.0,0.00028451,18]
[356067617,1741877530138,-500.0,0.00028451,18]
[356067618,1741877530147,-500.0,0.00028451,18]
[356067619,1741877530156,-639.99585089,0.00028451,18]
[356067620,1741877530166,-500.0,0.00028451,18]
[356067621,1741877530174,-451.75309709,0.00028451,18]
[356067622,1741877530184,-500.0,0.00028451,18]
[356067623,1741877530194,-500.0,0.00028451,18]
[356067624,1741877530204,-500.0,0.00028451,18]
[356067625,1741877530213,-500.0,0.00028451,18]
[356067626,1741877530222,-591.54,0.00028451,18]
[356067627,1741877530232,-591.54,0.00028451,18]
[356067628,1741877530241,-591.54,0.00028451,18]
[356067629,1741877530251,-591.54,0.00028451,18]
[356067630,1741877530261,-591.5628594,0.00028451,18]
[356067631,1741877530270,-589.44,0.00028451,18]
[356067632,1741877530280,-589.44,0.00028451,18]
[356067633,1741877530289,-589.44,0.00028451,18]
[356067634,1741877530299,-589.44,0.00028451,18]
[356067635,1741877530309,-4668.69,0.00028451,18]
[356067636,1741877530318,-589.65622428,0.00028451,18]
[356067637,1741877530328,-4668.69,0.00028451,18]
[356067638,1741877530339,-4668.69,0.00028451,18]
[356067639,1741877530347,-4668.69,0.00028451,18]
[356067640,1741877530357,-514.57150638,0.00028452,18]
[356067641,1741877530366,-526.77895833,0.00028452,18]
[356067642,1741877530375,-500.0,0.00028452,18]
[356067643,1741877530384,-502.58048318,0.00028452,18]
[356067644,1741877530394,-501.71535687,0.00028452,18]
[356067645,1741877530403,-502.2626541,0.00028452,18]
[356067646,1741877530412,-322.4837371,0.00028452,18]
[356067647,1741877530422,-201.97803455,0.00028452,18]
[356067648,1741877530431,-500.0,0.00028452,18]
[356067649,1741877530440,-502.15328648,0.00028452,16]
[356067650,1741877530449,-510.20163888,0.00028452,18]
[356067651,1741877530459,-500.0,0.00028452,18]
[356067652,1741877530468,-615.7927896,0.00028452,18]
[356067653,1741877530477,-500.0,0.00028452,18]
[356067654,1741877530487,-500.0,0.00028452,18]
[356067655,1741877530496,-500.0,0.00028452,18]
[356067656,1741877530506,-510.34973878,0.00028452,18]
[356067657,1741877530516,-500.92785147,0.00028452,18]
[356067658,1741877530525,-502.25769175,0.00028452,18]
[356067659,1741877530535,-500.0,0.00028452,18]
[356067660,1741877530544,-431.05220505,0.00028452,18]
[356067661,1741877530554,-500.0,0.00028452,18]